Cogmind - Beta 16 @@@ ROGUE MODE // 2025.10.25 @ 23:17:18 Player: the Result: Destroyed by 3W-E7R(R) with Subdweller Laser Performance ------------- Evolutions (0) 0 Regions Visited (2) 400 Robots Destroyed (37) 185 Value Destroyed (715) 715 Prototype IDs (16) 320 Alien Tech Used (0) 0 Bonus (0) 0 TOTAL SCORE: 1620 Bonus ------- None Cogmind --------- Core Integrity 0/250 Matter 101/300 Energy 200/200 System Corruption 0% Temperature Cool (6) Movement Rolling (120) Ox1 Location -10/Subcaves Parts ------- > --- POWER (1) -------- Subdweller Power Source > --- PROPULSION (2) --- Light Treads Subdweller Monowheel > --- UTILITY (2) ------ Large Storage Unit > --- WEAPON (2) ------- Subdweller Beam Cannon Light Cannon > --- INVENTORY (15) --- Subdweller Monowheel Subdweller Monowheel Disposable Heat Sink Disposable Heat Sink Improved Terrain Scanner Subdweller Laser Subdweller Machine Gun Subdweller Machine Gun Barrage Gun Barrage Gun Piercing Trap Peak State ------------ > --- POWER ------------ Light Ion Engine > --- PROPULSION ------- Light Treads Light Treads > --- UTILITY ---------- Huge Storage Unit Propulsion Shielding > --- WEAPON ----------- Light Cannon Mining Laser > --- INVENTORY -------- Ion Engine Light Treads Light Treads Arachnoskeleton Large Storage Unit Medium Matter Pod Improved Terrain Scanner Seismic Detector Seismic Detector Barrage Gun Barrage Gun Light Cannon Light Cannon Light Cannon Light Cannon Light Cannon [Rating: 11] Favorites ----------- Power Light Ion Engine Engine Light Ion Engine Propulsion Light Treads Treads Light Treads Wheel Subdweller Monowheel Utility Seismic Detector Device Seismic Detector Storage Large Storage Unit Protection Propulsion Shielding Weapon Light Cannon Energy Gun Small Laser Energy Cannon Subdweller Beam Cannon Ballistic Gun Light Assault Rifle Ballistic Cannon Light Cannon Special Weapon Mining Laser Build | -11 -10 -10 ------- Run | Yrd Mat Sub Slots Evolved . | . . . Power . | . . . Propulsion . | . . . Utility . | . . . Weapon . | . . . Parts Attached 27 | 7 10 10 Power 3 | 1 1 1 Engine 3 | 1 1 1 Core . | . . . Reactor . | . . . Propulsion 5 | 2 2 1 Treads 4 | 2 2 . Leg . | . . . Wheel 1 | . . 1 Hover . | . . . Flight . | . . . Utility 9 | 2 4 3 Device 3 | 1 1 1 Storage 5 | 1 3 1 Processor . | . . . Hackware . | . . . Protection 1 | . . 1 Artifact . | . . . Weapon 10 | 2 3 5 Energy Gun 2 | 1 . 1 Energy Cannon 1 | . . 1 Ballistic Gun 2 | 1 . 1 Ballistic Cannon 4 | . 2 2 Launcher . | . . . Special Weapon 1 | . 1 . Impact Weapon . | . . . Slashing Weapon . | . . . Piercing Weapon . | . . . Special Melee Weapon . | . . . Unidentified Prototypes . | . . . Parts Lost 8 | . . 8 Power 1 | . . 1 Propulsion 3 | . . 3 Utility 1 | . . 1 Weapon 3 | . . 3 Highest Loss Streak 5 | . . 5 To Critical Strikes . | . . . Average Backups 10 | 2 9 12 Power . | . 1 . Propulsion 2 | . 1 3 Utility 2 | 1 2 3 Weapon 4 | . 4 5 Tool/Special . | . . . Unused Backups 16 | 1 1 14 Power 1 | . . 1 Propulsion 4 | . . 4 Utility 5 | 1 . 4 Weapon 6 | . 1 5 Tool/Special . | . . . Average Slot Usage (%) 99 | . 99 99 Engine 14 | . 14 14 Treads 27 | . 27 27 Device 11 | . 14 9 Storage 14 | . 14 14 Protection 2 | . . 4 Energy Gun 1 | . 2 . Ballistic Gun 1 | . 2 . Ballistic Cannon 24 | . 21 27 Peak Build Rating 11 | 7 8 11 Average Rating 8 | 5 7 9 On Entrance 5 | . 7 8 Avg Prop Armor Cover (%) 29 | 29 . . Naked Turns . | . . . Heaviest Build 90 | 13 30 90 Greatest Support 40 | 40 40 40 Greatest Overweight (x) 2 | . . 2 Average Overweight (x) . | . . . Largest Inventory Capacity 25 | 8 15 25 Average Capacity 14 | 7 11 16 Most Carried 19 | 5 13 19 Average Carried 11 | 2 9 14 Final Capacity 15 | 8 15 15 Final Carried 13 | 4 13 11 Class Distribution -------------------- 100% | Mutant Dominant Class ---------------- Mutant | -10/Materials Mutant | -10/Subcaves Resources | -11 -10 -10 ----------- Run | Yrd Mat Sub Matter Collected 989 | 284 239 466 Remotely . | . . . Salvage Created 759 | 155 417 187 Parts 66 | 15 34 17 Haulers Intercepted 2 | . 2 . Recyclers Shooed . | . . . Parts Field Recycled . | . . . Retrieved Matter . | . . . Parts Self-Destructed 7 | . . 7 Prevented . | . . . Parts Restored . | . . . Kills | -11 -10 -10 ------- Run | Yrd Mat Sub Combat Hostiles Destroyed 21 | . 11 10 Guns 10 | . 9 1 Cannons 11 | . 2 9 Classes Destroyed 8 | 2 5 1 Builder 4 | . 4 . Tunneler 6 | 5 1 . Hauler 2 | . 2 . Recycler 1 | 1 . . Watcher 3 | . 3 . Swarmer 8 | . 8 . Grunt 3 | . 3 . Subdweller 10 | . . 10 Best Kill Streak 6 | 4 6 2 Combat Bots Only 5 | . 5 2 Max Kills in Single Turn 2 | 1 2 1 Gunslinging 1 | . 1 . Exploded . | . . . Melee . | . . . Uniques/NPCs Destroyed . | . . . Combat | -11 -10 -10 -------- Run | Yrd Mat Sub Hostile Shots Fired 120 | . 60 60 Missed 29 | . 17 12 Hits 91 | . 43 48 Projectile 91 | . 43 48 AOE 10 | . . 10 Critical Strikes 1 | . 1 . Damage Taken 1775 | . 398 1377 Core 262 | . 80 182 Absorbed by Shields . | . . . Redirected to Shielding 41 | . . 41 Regen/Repaired (Parts) 139 | . 139 . Core Remaining (%) 100 | 100 . . Volleys Fired 125 | 14 60 51 Largest 2 | 2 2 2 Hottest 110 | 60 100 110 Shots Fired 232 | 28 108 96 Gun 103 | 28 72 3 Cannon 120 | . 28 92 Launcher . | . . . Special 9 | . 8 1 Kinetic 169 | 14 66 89 Thermal 63 | 14 42 7 Explosive . | . . . Electromagnetic . | . . . Robot Hit Streak 9 | 5 8 9 Robot Miss Streak 5 | 1 5 3 Penetration Max . | . . . Secondary Targets 2 | . 2 . Max Gunslinging Chain 1 | . 1 . Shots Hit Robots 149 | 19 66 64 Core Hits 58 | 11 27 20 Critical Kills . | . . . Critical Parts Destroyed . | . . . Critical Strikes 4 | . . 4 Blast 4 | . . 4 Melee Attacks . | . . . Impact . | . . . Slashing . | . . . Piercing . | . . . Sneak Attacks . | . . . Combat Hostiles . | . . . Follow-up Attacks . | . . . Damage Inflicted 2081 | 179 808 1094 Guns 653 | 179 455 19 Cannons 1339 | . 264 1075 Explosions . | . . . Melee . | . . . Ramming 17 | . 17 . Kinetic 1568 | 71 490 1007 Thermal 496 | 108 301 87 Explosive . | . . . Electromagnetic . | . . . Impact . | . . . Slashing . | . . . Piercing . | . . . Highest Corruption . | . . . Average Corruption . | . . . Corruption Purged . | . . . Corruption Blocked . | . . . Overload Shots . | . . . Overflow Damage 3 | . 3 . Projectiles . | . . . Explosions . | . . . Melee 3 | . 3 . Knockbacks 21 | . 6 15 Impact . | . . . Kinetic 21 | . 6 15 Secondary . | . . . Self-Inflicted Damage . | . . . Shots . | . . . Rammed 5 | . 5 . Targets Rammed 6 | . 6 . Kicked . | . . . Crushed 1 | . 1 . Highest Temperature 167 | 60 167 2 Average Temperature 43 | 23 49 2 Received Heat Transfer 282 | . 105 177 Siege Activations . | . . . Martial Activations . | . . . Shielding Activations . | . . . Robots Disrupted . | . . . Combat Hostiles . | . . . Robots Corrupted 1 | . 1 . Combat Hostiles . | . . . Parts Fried 2 | . 2 . Impact Corruptions 1 | . 1 . Robots Melted . | . . . Combat Hostiles . | . . . Parts Melted . | . . . Heat Transferred 1036 | 250 675 111 Parts Sabotaged . | . . . Parts Stolen . | . . . Parts Stripped . | . . . Power Chain Reactions . | . . . Alert | -11 -10 -10 ------- Run | Yrd Mat Sub Maximum Alert Level . | . . . Low Security (%) 100 | 100 100 . Level 1 . | . . . Level 2 . | . . . Level 3 . | . . . Level 4 . | . . . Level 5 . | . . . High Security . | . . . Max Security . | . . . Peak Influence 180 | 15 180 . Initial . | . . . Average 43 | 2 46 . Influence Increases 470 | 30 440 . Destroy 0b10 Robot/C 220 | . 220 . Destroy 0b10 Robot/NC 80 | 30 50 . Destroy Leader 60 | . 60 . Successful Hack 46 | . 46 . Destroy Structure 4 | . 4 . Lose Combat Pursuer 60 | . 60 . Influence Decreases 470 | 30 403 37 Entered New Map 18 | . . 18 Time Decay 452 | 30 403 19 Squads Dispatched 1 | . 1 . Investigation . | . . . Extermination . | . . . Reinforcement 1 | . 1 . Assault . | . . . Garrison . | . . . Intercept . | . . . Searches Triggered . | . . . Construction Impeded . | . . . Haulers Reinforced . | . . . Active Scanning Responses . | . . . Cargo Convoy Interrupts . | . . . Stealth | -11 -10 -10 --------- Run | Yrd Mat Sub Distress Signals 1 | . 1 . Communications Jammed . | . . . Distress Signals . | . . . Times Spotted 28 | . 17 11 Peak Tracking Total 5 | . 5 3 Tactical Retreats 2 | . 2 . Traps | -11 -10 -10 ------- Run | Yrd Mat Sub Traps Triggered 1 | . 1 . Indirectly . | . . . Trap Hack Attempts . | . . . Triggered . | . . . Disarmed . | . . . Reprogrammed . | . . . Reused . | . . . Traps Extracted . | . . . Installed . | . . . Triggered . | . . . Most Traps Carried 1 | . . 1 Machines | -11 -10 -10 ---------- Run | Yrd Mat Sub Machines Disabled 1 | . . 1 Max in Single Turn 1 | . . 1 Machines Repaired . | . . . Machines Dismantled . | . . . Machines Sabotaged . | . . . Overloaded Fab Kills . | . . . Hacking | -11 -10 -10 --------- Run | Yrd Mat Sub Machines Accessed 10 | . 9 1 Terminals 7 | . 7 . Fabricators . | . . . Repair Stations 1 | . 1 . Recycling Units 1 | . 1 . Scanalyzers . | . . . Garrison Access . | . . . Total Hacks 37 | . 36 1 Successful 21 | . 20 1 Failed 16 | . 16 . Catastrophic 1 | . 1 . Database Lockouts . | . . . Manual 25 | . 25 . Terminals 29 | . 29 . Fabricators . | . . . Repair Stations 6 | . 6 . Recycling Units 1 | . 1 . Scanalyzers . | . . . Garrison Access . | . . . Terminal Hacks 10 | . 9 1 Part Schematic 1 | . 1 . Robot Analysis 1 | . 1 . Prototype ID Bank 4 | . 4 . Terminal Index 1 | . 1 . Recall Reinforcements 1 | . 1 . Zone Layout 1 | . 1 . Proto ID Catalog 1 | . . 1 Fabricator Hacks . | . . . Repair Station Hacks 5 | . 5 . Scan Component 3 | . 3 . Repair 2 | . 2 . Recycling Unit Hacks . | . . . Scanalyzer . | . . . Garrison Access Hacks . | . . . Unauthorized Hacks 6 | . 6 . Terminals 6 | . 6 . Assimilate 2 | . 2 . Botnet 3 | . 3 . Operators 1 | . 1 . Fabricators . | . . . Repair Stations . | . . . Recycling Units . | . . . Scanalyzers . | . . . Garrison Access . | . . . Data Cores Recovered . | . . . Used . | . . . Hacking Detections 9 | . 9 . Full Trace Events . | . . . Feedback Events . | . . . Feedback Blocked . | . . . Robot Schematics Acquired . | . . . Robots Built . | . . . Authchips . | . . . Time . | . . . Total Robot Build Rating . | . . . Part Schematics Acquired 1 | . 1 . Parts Built . | . . . Authchips . | . . . Time . | . . . Total Part Build Rating . | . . . Part Studies Acquired . | . . . Parts Repaired 2 | . 2 . Time 52 | . 52 . Parts Recycled . | . . . Recycled Matter . | . . . Retrieved Matter . | . . . Retrieved Components . | . . . Parts Scanalyzed . | . . . Part Schematics Acquired . | . . . Parts Damaged . | . . . Bothacking | -11 -10 -10 ------------ Run | Yrd Mat Sub Used RIF Installer . | . . . Robots Hacked . | . . . Non-combat . | . . . Combat . | . . . Robot Hacks Applied . | . . . Relay Couplers Released . | . . . Fabnet Peak Effective % . | . . . Robots Rewired . | . . . Allies Hacked . | . . . Hacks Repelled . | . . . Allies | -11 -10 -10 -------- Run | Yrd Mat Sub Total Allies 1 | . 1 . Largest Group 1 | . 1 1 Highest-Rated Group 10 | . 10 10 Highest-Rated Ally 10 | . 10 10 Total Orders . | . . . Ally Attacks . | . . . Total Damage . | . . . Kills . | . . . Allies Corrupted . | . . . Allies Melted . | . . . Intel | -11 -10 -10 ------- Run | Yrd Mat Sub Active Infowar (turns) 3200 | 18 1672 1510 Terrain 445 | . . 445 Seismic 2755 | 18 1672 1065 Robot Analysis Total 1 | . 1 . Derelict Logs Recovered 2 | . . 2 Drone Launches . | . . . Drone Recoveries . | . . . Exploration | -11 -10 -10 ------------- Run | Yrd Mat Sub Turns Passed 4003 | 135 1672 2196 Spaces Moved 1671 | 75 845 751 Core 44 | 44 . . Treads 1627 | 31 845 751 Legs . | . . . Wheels . | . . . Hover . | . . . Flight . | . . . Fastest Speed 50 | 50 160 160 Average Speed 167 | 95 160 183 Slowest Speed 320 | 160 160 320 Overloaded Moves . | . . . Propulsion Burnouts . | . . . Robots Hopped . | . . . Potential Cave-ins . | . . . Cave-ins Triggered . | . . . Exploration Rate (%) 46 | 4 95 41 Regions Visited 2 Branch Regions 1 Pre-discovered Areas 1 | . . 1 Known Exits Taken . | . . . Unknown Exits Taken 2 | 1 1 . Scrap Searched 3 | . . 3 Spaces Dug 4 | . 4 . Terrain Destroyed 7 | . 5 2 Melee . | . . . Projectile 7 | . 5 2 AOE . | . . . Terrain Rammed . | . . . Walls Destroyed . | . . . Machines Disabled . | . . . Actions | -11 -10 -10 --------- Run | Yrd Mat Sub Total 2633 | 112 1047 1474 Wait 723 | 6 100 617 Move 1669 | 74 844 751 Hop . | . . . Pick Up 40 | 9 13 18 Fast Attach 9 | 4 4 1 Attach 13 | 3 2 8 Detach . | . . . Swap 23 | . 9 14 Drop 25 | 2 9 14 Fire 125 | 14 60 51 Melee . | . . . Ram . | . . . Kick . | . . . Crush 6 | . 6 . Escape Stasis . | . . . Rewire . | . . . Trap . | . . . Miscellaneous . | . . . Route ------- -11/Scrapyard -10/Materials (discovered 6 exits: [*Mat x3] / [*Min x2] / *Sub) -10/Subcaves History --------- Turn | Location | Event 7 | -11/Scrapyard | Discovered new exit (range 13) 136 | -11/Scrapyard | Entered Materials 310 | -10/Materials | Build established: Mutant 650 | -10/Materials | Discovered new exit (range 9) 769 | -10/Materials | Discovered new exit (range 16) 769 | -10/Materials | Discovered new exit (range 5) 901 | -10/Materials | Discovered new exit (range 15) 1100 | -10/Materials | Discovered new exit (range 16) 1350 | -10/Materials | Discovered new exit (range 7) 1451 | -10/Materials | Repaired Lgt. Treads 1478 | -10/Materials | Repaired Lgt. Treads 1808 | -10/Materials | Entered Subcaves 1808 | -10/Subcaves | Accompanied by 1 ally 1816 | -10/Subcaves | Learned location of 1 exit from Materials 1917 | -10/Subcaves | Visited 4L-MR0's lab 1946 | -10/Subcaves | Found Arachnoskeleton 3024 | -10/Subcaves | Learned location of Zion (-7) 3817 | -10/Subcaves | Core integrity fell below 50% 3826 | -10/Subcaves | Ambushed by Subdweller buried in earth 3871 | -10/Subcaves | Lost 3 parts (1n2w) 3940 | -10/Subcaves | A swath of the cavern ceiling suddenly collapsed 3973 | -10/Subcaves | Ambushed by Subdweller buried in earth 3973 | -10/Subcaves | Ambushed by Subdweller buried in earth 3979 | -10/Subcaves | Core integrity fell below 20% 4004 | -10/Subcaves | Destroyed by 3W-E7R(R) with Subdweller Laser Last Messages --------------- 03883_ Acquired 3 matter. 03899_ Acquired 15 matter. 03920_ Acquired 6 matter. 03923_ Acquired 15 matter. 03940_ 11 Matter crushed. A swath of the cavern ceiling suddenly collapses. 03965_ Seismic Detector destroyed. 03965_ Lgt. Treads destroyed. 03972_ Destroyed Scrap Shield. 03973_ Lgt. Ion Engine destroyed. 03974_ 3W-E7R(R): "ARGHSUB!" 03974_ ZN-1VQ(R): "HIDIE!" 03975_ 8Q-6VB(R) destroyed. 03979_ ZN-1VQ(R) knocked back. 03986_ Lgt. Treads destroyed. 03988_ Lgt. Cannon destroyed. 03996_ ZN-1VQ(R) knocked back. 04002_ Destroyed Scrap Shield. 04002_ ZN-1VQ(R) destroyed. Map ----- +----------------------------------------------------+ | ?????????????????????????????????????######## | | ?????????????????????????????????????# % | | ?????????????????????????????????????# % | | ???????????????????????#???# ????????# % | | ???????????????????????# ## ???????#""" # % & | | ??????????????????????# ?????### | | ???????????????????????? ???## | | ???????????????????????????# ###%% | | ????????????????????????????# % &! | | ????????????????????????????## ###= | | ????????????????????????????????# &"! | | ?????????????????????????????# "" " % | | ????????????????????????#????# % " ## " & # | | ????????????????##?????? #???# & # # ###" ! &# | | ???????????????# #????? ???# ###### ##?## *= | | ???????????????? ##??? ### ????####???###! " | | ????????????????# ??? ## ##????????????#""" | | ????????????????# ?? #??????????###""" | | ????????????????? ?? #?##########""""" | | ?????????????????? ?# ### # # """ """ | | ??????????????????? ## #?# " """" | | ????????????????????# #?## " " " | | ??????????? ????# ### #"#"####" | | ??????????? ## ## #####??# #### | | ??????????????# ;### ##?????## #??## | | ?????????? @ ##"# #??????###???? | | ?????????? ;####????????????? | | ?????????????# % ;;;"##????????????? | | ?????????????## %% R ;#;##?????????????? | | ??????????????######;# ; ;;###?????????????? | | ???????????????????#?# # ;;####??????????????? | | ?????????????????????## #?######?????????????????? | | ??????????????????????##?????????????????????????? | | ?????????????????????????????????????????????????? | | ?????????????????????????????????????????????????? | | ?????????????????????????????????????????????????? | | ?????????????????????????????????????????????????? | | ?????????????????????????????????????????????????? | | ?????????????????????????????????????????????????? | | ?????????????????????????????????????????????????? | | ?????????????????????????????????????????????????? | | ?????????????????????????????????????????????????? | | ?????????????????????????????????????????????????? | | ?????????????????????????????????????????????????? | | ?????????????????????????????????????????????????? | | | | | | | | | | | +----------------------------------------------------+ Best States ------------- Heat Dissipation 25 Energy Generation 15 Energy Capacity 250 Matter Stores 300 Matter Capacity 300 Sight Range 16 Terrain Scan Range 16 Terrain Scan Density 10 Propulsion Shielding 33 Evasion (%) 50 Recoil Reduction 2 Item Schematics ----------------- Hcp. Storage Unit | -10/Materials | Hacked Robot Schematics ------------------ None Fabricated ------------ Nothing Repaired ---------- Lgt. Treads | 47% | -10/Materials Lgt. Treads | 52% | -10/Materials Studied --------- None Alien Tech Used ----------------- None Achievements -------------- None Challenges ------------ None Game ------ Seed TechSupersonicGreatsword Manual? 0 Play Time 00:22:23 Cumulative 391.1 hours Start 2025.10.25 @ 22:57:17 End 2025.10.25 @ 23:17:18 Sessions 1 Manual Loads 0 Difficulty Rogue Special Mode None Game No. 258 Rogue 258 Adventurer 0 Explorer 0 Win Type - Total 6 Types 4/0/1/0/0/0/0/1/0/0 Lore% 79 Gallery% 79 Achievement% 49 Wizard Run 0 Options --------- Layout 1 ASCII 0 Keyboard 0 Movement Numpad Keybinds 0 Fullscreen 1 Font 24/Smallcaps Map View 50x40 Zoom Use 6% Tactical HUD 1 Map Filters NONE Filters NONE Steam 1 RUN: 279214e1-5e62-437b-8669-922953067ffe